Workbook

Sheet Instructions
A1: Manufacturer | B1: Panaria
A2: Product Code | B2: G | C2: File as: | D2: P
A3: CCTD Effective Date | B3: 4/1/24 (Updated)
A7: Enter your Company Name
B9: Click on "Index" to set the print area for the price list index
B10: Then you can send it to print
B13: Click on "Suggested Price List" to set the print area for Conestoga Tile's suggested price list.
B14: Then you can send it to print
B17: Enter your discount codes if you want a personal net cost sheet.
B19: Product
B20: Code | C20: Disc. %
B21: =+B2 -> G
B23: Click on "Your Cost" to set the print area for your personal cost report.
B24: Then you can send it to print
A27: Discount: | B27: To help establish your price list, enter the gross profit percent for each type of product.
B28: If you want to use Conestoga Tile's list price, leave them blank.
A30: Round Nickel: | B30: If you always want your price to round to the nearest nickel, enter "YES".
B31: If you enter "NO", it will NOT round to the nearest nickel.
A33: Ending Cents: | B33: If you always want your price to end with a certain cents, enter that cent value.
B34: If you leave it "blank" will NOT round to this cent value.
B36: Group | C36: GP Margin | D36: GP Margin % for | F36: Round Nickel | G36: add/subtract | H36: Ending Cents
B37: 1 | D37: Field Tile | F37: No | G37: 0
B38: 2 | D38: Trim | F38: No | G38: 0
B39: 3 | D39: Decos | F39: No | G39: 0
B40: 4 | D40: Italy | F40: No | G40: 0
B41: 5 | D41: 0 | F41: No | G41: 0
B42: 6 | D42: 0 | F42: No | G42: 0
B43: 7 | D43: 0 | F43: No | G43: 0
A45: If you want to manually adjust your price list, hit "F5" and go to "Customer_Cost" to manually adjust pricing.
A46: You can enter a value in the column labeled "Adj." to change your price manually.
B48: Click on "Your Price Calculation" to set the print area for your personal cost calculation report.
B49: Then you can send it to print
B52: Click on "Your Price List" to set the print area for your personal price list.
B53: Then you can send it to print
H54: Yes
A56: If you have any questions on how to best use this spreadsheet, please feel free to contact
A57: Jim Vogel at (800) 422-6860, ext. 4201 or via e-mail at jimvogel@cctd.com

Sheet Index
K2: ="File '"&Instructions!D2&"' - "&Instructions!B1 -> File 'P' - Panaria
A5: ="Price List Index - "&Instructions!B3 -> Price List Index - 4/1/24 (Updated)
A10: Page | C10: Series | E10: Product Type | G10: Page | I10: Series | K10: Product Type
A11: 1 | C11: Connect | E11: Glazed Porcelain Floor & Wall
A12: 1 | C12: Craft | E12: Glazed Porcelain Floor & Wall
A13: 1 | C13: Flow | E13: Glazed Porcelain Floor & Wall
A14: 1 | C14: Home | E14: Glazed Porcelain Floor & Wall
A15: 1 | C15: Life | E15: Glazed Porcelain Floor & Wall
A16: 1 | C16: Metropolitan | E16: Glazed Porcelain Floor & Wall
A17: 2 | C17: Playlist | E17: Glazed Porcelain Floor & Wall
A18: 2 | C18: Prestige | E18: Glazed Porcelain Floor & Wall
A19: 2 | C19: Suite | E19: Glazed Porcelain Floor & Wall
A20: 2 | C20: True | E20: Glazed Porcelain Floor & Wall
A21: 2 | C21: Wood Trend | E21: Glazed Porcelain Floor
A22: 2 | C22: Wood You | E22: Glazed Porcelain Floor & Wall
A50: This price list is available electronically on an Excel spreadsheet at www.conestogatile.com/pricelists.
A52: The spreadsheet has many special features to assist you. Apply your discount to generate your net costs for your purchasing department. Apply your standard gross margin percentage or custom prices to generate your own custom price list for your showroom. Print out individual price list for each series that can be attached to the back of your sample boards for easy reference.

Sheet Price List
B1: Field Tile | E1: Size | G1: Field | P1: SF/CTN | S1: =IF(Suggested="Yes",AA1,AG1) -> 0.05 | T1: SF | U1: =+Instructions!$B$21 -> G | W1: =+Instructions!$C$21 -> 0 | X1: =ROUNDUP($AA1*(1-W1),2) -> 0.05 | Z1: new | AA1: 0.05 | AB1: =+W1 -> 0 | AC1: 0.05 | AD1: =(AG1-AC1)/AG1 -> 0 | AF1: 1 | AG1: =SUM(AI1:AK1)+AE1 -> 0.05 | AI1: =ROUND(AC1/(1-VLOOKUP(AF1,Group,2,FALSE)),2) -> 0.05 | AJ1: =IF(VLOOKUP(AF1,Group,5,FALSE)="YES",VLOOKUP(ROUND(ROUND(AI1,1)-AI1,2),Round,2,FALSE)+VLOOKUP(AF1,Group,6,FALSE),0) -> 0 | AK1: =IF(VLOOKUP(AF1,Group,7,FALSE)="",0,ROUND(AI1-0.04999,1)-AI1+AL1) -> 0 | AL1: =IF(VLOOKUP(AF1,Group,7,FALSE)="","",VLOOKUP(AF1,Group,7,FALSE)) ->  | AN1: X
B2: Trim | E2: Size | G2: Shape | I2: Description | S2: 0.05 | T2: EA | U2: =+Instructions!$B$21 -> G | W2: =+Instructions!$C$21 -> 0 | X2: 0.05 | Z2: new | AA2: 0.05 | AB2: 0 | AC2: 0.05 | AD2: 0 | AF2: 2 | AG2: 0.05 | AI2: 0.05 | AJ2: 0 | AK2: 0 | AN2: X
B3: Decos | E3: Size | G3: Shape | I3: Description | S3: 0.05 | T3: EA | U3: =+Instructions!$B$21 -> G | W3: =+Instructions!$C$21 -> 0 | X3: 0.05 | Z3: new | AA3: 0.05 | AB3: 0 | AC3: 0.05 | AD3: 0 | AF3: 3 | AG3: 0.05 | AI3: 0.05 | AJ3: 0 | AK3: 0 | AN3: X
B4: Italy | E4: Size | G4: Shape | I4: Description | P4: SF/CTN | S4: 0.05 | T4: SF | U4: G | W4: =+Instructions!$C$21 -> 0 | X4: 0.05 | Z4: new | AA4: 0.05 | AB4: 0 | AC4: 0.05 | AD4: 0 | AF4: 4 | AG4: 0.05 | AI4: 0.05 | AJ4: 0 | AK4: 0 | AN4: X
B5: 0 | E5: Size | G5: Shape | I5: Description | S5: 0 | T5: EA | U5: xx | W5: =+Instructions!$C$21 -> 0 | X5: 0 | Z5: new | AA5: 0 | AB5: 0 | AC5: 0 | AF5: 5 | AG5: 0 | AI5: 0 | AJ5: 0 | AK5: 0 | AN5: X
B6: 0 | E6: Size | G6: Shape | I6: Description | S6: 0 | T6: EA | U6: xx | W6: =+Instructions!$C$21 -> 0 | X6: 0 | Z6: new | AA6: 0 | AB6: 0 | AC6: 0 | AF6: 6 | AG6: 0 | AI6: 0 | AJ6: 0 | AK6: 0 | AN6: X
B7: 0 | E7: Size | G7: Shape | I7: Description | S7: =IF(Suggested="Yes",'Price List'!AA7,'Price List'!AG7) -> 0 | T7: EA | U7: G | W7: =+Instructions!$C$21 -> 0 | X7: 0 | Z7: new | AA7: 0 | AB7: 0 | AC7: 0 | AF7: 7 | AG7: 0 | AI7: 0 | AJ7: 0 | AK7: 0 | AN7: X
B8: Format | Q8: Stock | R8: a | S8: 1000 | T8: ABC | W8: 0.1 | X8: 1000 | Z8: ABC | AA8: 1000 | AB8: 0.1 | AC8: 1000 | AD8: 0.1 | AE8: 10 | AG8: 1000 | AN8: X
AN9: X
O10: Price List | W10: Cust. Cost | Z10: Customer Cost Calculation | AN10: X
D11: Sizes & Shapes | O11: Full Carton | Q11: Stock | R11: Note | S11: =IF(Suggested="Yes",AA11,AG11) -> List Price | T11: U/M | U11: Code | W11: Disc. | X11: Net | Z11: Chg | AA11: List Price | AB11: Disc | AC11: Act. Cost | AD11: GP% | AE11: Adj. | AF11: Group | AG11: Price | AI11: Calc Price | AJ11: .05 Round | AK11: Cents | AL11: Round to | AN11: X
AN12: X
O13: ="File '"&Instructions!D2&"' - "&Instructions!B1 -> File 'P' - Panaria | W13: Cost | AG13: Retail Price Calculations | AN13: X
T14: =+Instructions!B3 -> 4/1/24 (Updated) | AE14: =TODAY() -> 2024-07-08 | AN14: X
N15: =IF(Instructions!C7="","",+Instructions!C7) ->  | AN15: X
C16: ="Product Code '"&Instructions!B2&"'" -> Product Code 'G' | AG16: =IF(Instructions!$C$7="","",Instructions!$C$7) ->  | AN16: X
AN17: X
C18: Sizes & Shapes | O18: Full Carton | Q18: Stock | R18: Note | S18: =+S$11 -> List Price | T18: U/M | U18: =+U$11 -> Code | W18: Disc. | X18: Net | Z18: Chg | AA18: List Price | AB18: =+AB$11 -> Disc | AC18: =+AC$11 -> Act. Cost | AD18: =+AD$11 -> GP% | AE18: =+AE$11 -> Adj. | AF18: =+AF$11 -> Group | AG18: =+AG$11 -> Price | AI18: =+AI$11 -> Calc Price | AJ18: =+AJ$11 -> .05 Round | AK18: =+AK$11 -> Cents | AL18: =+AL$11 -> Round to | AN18: X
C19: ALL ITEMS MARKED WITH PACKAGING QUANTITY ARE SOLD IN MULTIPLES OF THAT QUANTITY ONLY | AN19: X
AN20: X
C21: CONNECT - Glazed Porcelain Floor & Wall (High Definition Porcelain w/ Microban) | R21: Item # Lookup: | S21: PNCO | AN21: X
D23: Colors: | E23: Akashi Brooklyn Forth Harbour Sospiri | AN23: X
B25: Field Tile | E25: 6" x 24" | G25: Field - Rectified | P25: 11.63 SF/CTN | S25: =IF(Suggested="Yes",AA25,AG25) -> 8.8 | T25: SF | U25: =+Instructions!$B$21 -> G | W25: =+Instructions!$C$21 -> 0 | X25: =ROUNDUP($AA25*(1-W25),2) -> 8.8 | AA25: 8.8 | AB25: =+W25 -> 0 | AC25: =+X25 -> 8.8 | AD25: =(AG25-AC25)/AG25 -> 0 | AF25: 1 | AG25: =SUM(AI25:AK25)+AE25 -> 8.8 | AI25: =ROUND(AC25/(1-VLOOKUP(AF25,Group,2,FALSE)),2) -> 8.8 | AJ25: =IF(VLOOKUP(AF25,Group,5,FALSE)="YES",VLOOKUP(ROUND(ROUND(AI25,1)-AI25,2),Round,2,FALSE)+VLOOKUP(AF25,Group,6,FALSE),0) -> 0 | AK25: =IF(VLOOKUP(AF25,Group,7,FALSE)="",0,ROUND(AI25-0.04999,1)-AI25+AL25) -> 0 | AL25: =IF(VLOOKUP(AF25,Group,7,FALSE)="","",VLOOKUP(AF25,Group,7,FALSE)) ->  | AN25: X
B26: Field Tile | E26: 12" x 24" | G26: Field | P26: 15.82 SF/CTN | Q26: Stock | S26: 5.8 | T26: SF | U26: =+Instructions!$B$21 -> G | W26: =+Instructions!$C$21 -> 0 | X26: 5.8 | AA26: 5.8 | AB26: 0 | AC26: 5.8 | AD26: 0 | AF26: 1 | AG26: 5.8 | AI26: 5.8 | AJ26: 0 | AK26: 0 | AN26: X
B27: Field Tile | E27: 24" x 24" | G27: Field | P27: 15.82 SF/CTN | S27: 6.2 | T27: SF | U27: =+Instructions!$B$21 -> G | W27: =+Instructions!$C$21 -> 0 | X27: 6.2 | AA27: 6.2 | AB27: 0 | AC27: 6.2 | AD27: 0 | AF27: 1 | AG27: 6.2 | AI27: 6.2 | AJ27: 0 | AK27: 0 | AN27: X
B29: Decos | E29: 12" x 12" | G29: Mosaic | I29: 2" x 2" | P29: .97 SF/SHEET | Q29: Stock | S29: =IF(Suggested="Yes",AA29,AG29) -> 24.75 | T29: SF | U29: =+Instructions!$B$21 -> G | W29: =+Instructions!$C$21 -> 0 | X29: =ROUNDUP($AA29*(1-W29),2) -> 24.75 | AA29: 24.75 | AB29: =+W29 -> 0 | AC29: =+X29 -> 24.75 | AD29: =(AG29-AC29)/AG29 -> 0 | AF29: 3 | AG29: =SUM(AI29:AK29)+AE29 -> 24.75 | AI29: =ROUND(AC29/(1-VLOOKUP(AF29,Group,2,FALSE)),2) -> 24.75 | AJ29: =IF(VLOOKUP(AF29,Group,5,FALSE)="YES",VLOOKUP(ROUND(ROUND(AI29,1)-AI29,2),Round,2,FALSE)+VLOOKUP(AF29,Group,6,FALSE),0) -> 0 | AK29: =IF(VLOOKUP(AF29,Group,7,FALSE)="",0,ROUND(AI29-0.04999,1)-AI29+AL29) -> 0 | AL29: =IF(VLOOKUP(AF29,Group,7,FALSE)="","",VLOOKUP(AF29,Group,7,FALSE)) ->  | AN29: X
B30: Decos | E30: 12" x 28" | G30: Mosaic | I30: Muretto | M30: 1.94 sf/sheet | P30: 7.76 SF/CTN | S30: =IF(Suggested="Yes",AA30,AG30) -> 28.15 | T30: SF | U30: =+Instructions!$B$21 -> G | W30: =+Instructions!$C$21 -> 0 | X30: 28.15 | AA30: 28.15 | AB30: 0 | AC30: 28.15 | AD30: 0 | AF30: 3 | AG30: 28.15 | AI30: 28.15 | AJ30: 0 | AK30: 0 | AN30: X
B32: Trim | E32: 4" x 24" | G32: Bullnose | Q32: Stock | S32: =IF(Suggested="Yes",AA32,AG32) -> 14.35 | T32: EA | U32: =+Instructions!$B$21 -> G | W32: =+Instructions!$C$21 -> 0 | X32: =ROUNDUP($AA32*(1-W32),2) -> 14.35 | AA32: 14.35 | AB32: =+W32 -> 0 | AC32: =+X32 -> 14.35 | AD32: =(AG32-AC32)/AG32 -> 0 | AF32: 2 | AG32: =SUM(AI32:AK32)+AE32 -> 14.35 | AI32: =ROUND(AC32/(1-VLOOKUP(AF32,Group,2,FALSE)),2) -> 14.35 | AJ32: =IF(VLOOKUP(AF32,Group,5,FALSE)="YES",VLOOKUP(ROUND(ROUND(AI32,1)-AI32,2),Round,2,FALSE)+VLOOKUP(AF32,Group,6,FALSE),0) -> 0 | AK32: =IF(VLOOKUP(AF32,Group,7,FALSE)="",0,ROUND(AI32-0.04999,1)-AI32+AL32) -> 0 | AL32: =IF(VLOOKUP(AF32,Group,7,FALSE)="","",VLOOKUP(AF32,Group,7,FALSE)) ->  | AN32: X
C34: CRAFT - Glazed Porcelain Floor & Wall (High Definition Porcelain w/ Microban) | R34: Item # Lookup: | S34: PNCR | AN34: X
D36: Colors: | E36: Cotton Quilt Rope Wool Yarn | AN36: X
B38: Field Tile | E38: 8" x 24" | G38: Field - Rectified | P38: 11.95 SF/CTN | S38: =IF(Suggested="Yes",AA38,AG38) -> 10.25 | T38: SF | U38: =+Instructions!$B$21 -> G | W38: =+Instructions!$C$21 -> 0 | X38: =ROUNDUP($AA38*(1-W38),2) -> 10.25 | AA38: 10.25 | AB38: =+W38 -> 0 | AC38: =+X38 -> 10.25 | AD38: =(AG38-AC38)/AG38 -> 0 | AF38: 1 | AG38: =SUM(AI38:AK38)+AE38 -> 10.25 | AI38: =ROUND(AC38/(1-VLOOKUP(AF38,Group,2,FALSE)),2) -> 10.25 | AJ38: =IF(VLOOKUP(AF38,Group,5,FALSE)="YES",VLOOKUP(ROUND(ROUND(AI38,1)-AI38,2),Round,2,FALSE)+VLOOKUP(AF38,Group,6,FALSE),0) -> 0 | AK38: =IF(VLOOKUP(AF38,Group,7,FALSE)="",0,ROUND(AI38-0.04999,1)-AI38+AL38) -> 0 | AL38: =IF(VLOOKUP(AF38,Group,7,FALSE)="","",VLOOKUP(AF38,Group,7,FALSE)) ->  | AN38: X
B39: Field Tile | E39: 12" x 24" | G39: Field - Rectified | P39: 15.61 SF/CTN | S39: 5.95 | T39: SF | U39: =+Instructions!$B$21 -> G | W39: =+Instructions!$C$21 -> 0 | X39: 5.95 | AA39: 5.95 | AB39: 0 | AC39: 5.95 | AD39: 0 | AF39: 1 | AG39: 5.95 | AI39: 5.95 | AJ39: 0 | AK39: 0 | AN39: X
B40: Field Tile | E40: 24" x 24" | G40: Field - Rectified | P40: 15.61 SF/CTN | S40: 6.55 | T40: SF | U40: =+Instructions!$B$21 -> G | W40: =+Instructions!$C$21 -> 0 | X40: 6.55 | AA40: 6.55 | AB40: 0 | AC40: 6.55 | AD40: 0 | AF40: 1 | AG40: 6.55 | AI40: 6.55 | AJ40: 0 | AK40: 0 | AN40: X
B42: Decos | E42: 12" x 12" | G42: Mosaic | I42: Basketweave | M42: .97 sf/sheet | P42: 4.85 SF/CTN | S42: =IF(Suggested="Yes",AA42,AG42) -> 26.65 | T42: SF | U42: =+Instructions!$B$21 -> G | W42: =+Instructions!$C$21 -> 0 | X42: =ROUNDUP($AA42*(1-W42),2) -> 26.65 | AA42: 26.65 | AB42: =+W42 -> 0 | AC42: =+X42 -> 26.65 | AD42: =(AG42-AC42)/AG42 -> 0 | AF42: 3 | AG42: =SUM(AI42:AK42)+AE42 -> 26.65 | AI42: =ROUND(AC42/(1-VLOOKUP(AF42,Group,2,FALSE)),2) -> 26.65 | AJ42: =IF(VLOOKUP(AF42,Group,5,FALSE)="YES",VLOOKUP(ROUND(ROUND(AI42,1)-AI42,2),Round,2,FALSE)+VLOOKUP(AF42,Group,6,FALSE),0) -> 0 | AK42: =IF(VLOOKUP(AF42,Group,7,FALSE)="",0,ROUND(AI42-0.04999,1)-AI42+AL42) -> 0 | AL42: =IF(VLOOKUP(AF42,Group,7,FALSE)="","",VLOOKUP(AF42,Group,7,FALSE)) ->  | AN42: X
B43: Decos | E43: 10" x 24" | G43: Herringbone Modules A-B | M43: .92 sf/sheet | P43: 5.52 SF/CTN | S43: 27.7 | T43: SF | U43: =+Instructions!$B$21 -> G | W43: =+Instructions!$C$21 -> 0 | X43: 27.7 | AA43: 27.7 | AB43: 0 | AC43: 27.7 | AD43: 0 | AF43: 3 | AG43: 27.7 | AI43: 27.7 | AJ43: 0 | AK43: 0 | AN43: X
B45: Trim | E45: 3-1/8" x 12" | G45: Bullnose | P45: 20 EA/CTN | S45: =IF(Suggested="Yes",AA45,AG45) -> 7.85 | T45: EA | U45: =+Instructions!$B$21 -> G | W45: =+Instructions!$C$21 -> 0 | X45: =ROUNDUP($AA45*(1-W45),2) -> 7.85 | AA45: 7.85 | AB45: =+W45 -> 0 | AC45: =+X45 -> 7.85 | AD45: =(AG45-AC45)/AG45 -> 0 | AF45: 2 | AG45: =SUM(AI45:AK45)+AE45 -> 7.85 | AI45: =ROUND(AC45/(1-VLOOKUP(AF45,Group,2,FALSE)),2) -> 7.85 | AJ45: =IF(VLOOKUP(AF45,Group,5,FALSE)="YES",VLOOKUP(ROUND(ROUND(AI45,1)-AI45,2),Round,2,FALSE)+VLOOKUP(AF45,Group,6,FALSE),0) -> 0 | AK45: =IF(VLOOKUP(AF45,Group,7,FALSE)="",0,ROUND(AI45-0.04999,1)-AI45+AL45) -> 0 | AL45: =IF(VLOOKUP(AF45,Group,7,FALSE)="","",VLOOKUP(AF45,Group,7,FALSE)) ->  | AN45: X
A47: r | C47: FLOW - Glazed Porcelain Floor & Wall (High Definition Porcelain w/ Microban) | R47: Item # Lookup: | S47: PNFL | AN47: X
D49: Colors: | E49: Desert Grey Ice Ivory Natural | AN49: X
B51: Field Tile | E51: 12" x 24" | G51: Field | P51: 15.82 SF/CTN | S51: =IF(Suggested="Yes",AA51,AG51) -> 5.35 | T51: SF | U51: =+Instructions!$B$21 -> G | W51: =+Instructions!$C$21 -> 0 | X51: =ROUNDUP($AA51*(1-W51),2) -> 5.35 | AA51: 5.35 | AB51: =+W51 -> 0 | AC51: =+X51 -> 5.35 | AD51: =(AG51-AC51)/AG51 -> 0 | AF51: 1 | AG51: =SUM(AI51:AK51)+AE51 -> 5.35 | AI51: =ROUND(AC51/(1-VLOOKUP(AF51,Group,2,FALSE)),2) -> 5.35 | AJ51: =IF(VLOOKUP(AF51,Group,5,FALSE)="YES",VLOOKUP(ROUND(ROUND(AI51,1)-AI51,2),Round,2,FALSE)+VLOOKUP(AF51,Group,6,FALSE),0) -> 0 | AK51: =IF(VLOOKUP(AF51,Group,7,FALSE)="",0,ROUND(AI51-0.04999,1)-AI51+AL51) -> 0 | AL51: =IF(VLOOKUP(AF51,Group,7,FALSE)="","",VLOOKUP(AF51,Group,7,FALSE)) ->  | AN51: X
B53: Decos | E53: 12" x 12" | G53: Mosaic | I53: 2.5" x 2.5" | M53: .97 sf/sheet | P53: 3.88 SF/CTN | S53: =IF(Suggested="Yes",AA53,AG53) -> 22.15 | T53: SF | U53: =+Instructions!$B$21 -> G | W53: =+Instructions!$C$21 -> 0 | X53: =ROUNDUP($AA53*(1-W53),2) -> 22.15 | AA53: 22.15 | AB53: =+W53 -> 0 | AC53: =+X53 -> 22.15 | AD53: =(AG53-AC53)/AG53 -> 0 | AF53: 3 | AG53: =SUM(AI53:AK53)+AE53 -> 22.15 | AI53: =ROUND(AC53/(1-VLOOKUP(AF53,Group,2,FALSE)),2) -> 22.15 | AJ53: =IF(VLOOKUP(AF53,Group,5,FALSE)="YES",VLOOKUP(ROUND(ROUND(AI53,1)-AI53,2),Round,2,FALSE)+VLOOKUP(AF53,Group,6,FALSE),0) -> 0 | AK53: =IF(VLOOKUP(AF53,Group,7,FALSE)="",0,ROUND(AI53-0.04999,1)-AI53+AL53) -> 0 | AL53: =IF(VLOOKUP(AF53,Group,7,FALSE)="","",VLOOKUP(AF53,Group,7,FALSE)) ->  | AN53: X
B54: Decos | E54: 12" x 28" | G54: Mosaic | I54: Muretto | M54: 1.94 sf/sheet | P54: 7.76 SF/CTN | S54: 28.15 | T54: SF | U54: =+Instructions!$B$21 -> G | W54: =+Instructions!$C$21 -> 0 | X54: 28.15 | AA54: 28.15 | AB54: 0 | AC54: 28.15 | AD54: 0 | AF54: 3 | AG54: 28.15 | AI54: 28.15 | AJ54: 0 | AK54: 0 | AN54: X
B56: Trim | E56: 4" x 24" | G56: Bullnose | P56: 16 EA/CTN | S56: =IF(Suggested="Yes",AA56,AG56) -> 13.5 | T56: EA | U56: =+Instructions!$B$21 -> G | W56: =+Instructions!$C$21 -> 0 | X56: =ROUNDUP($AA56*(1-W56),2) -> 13.5 | AA56: 13.5 | AB56: =+W56 -> 0 | AC56: =+X56 -> 13.5 | AD56: =(AG56-AC56)/AG56 -> 0 | AF56: 2 | AG56: =SUM(AI56:AK56)+AE56 -> 13.5 | AI56: =ROUND(AC56/(1-VLOOKUP(AF56,Group,2,FALSE)),2) -> 13.5 | AJ56: =IF(VLOOKUP(AF56,Group,5,FALSE)="YES",VLOOKUP(ROUND(ROUND(AI56,1)-AI56,2),Round,2,FALSE)+VLOOKUP(AF56,Group,6,FALSE),0) -> 0 | AK56: =IF(VLOOKUP(AF56,Group,7,FALSE)="",0,ROUND(AI56-0.04999,1)-AI56+AL56) -> 0 | AL56: =IF(VLOOKUP(AF56,Group,7,FALSE)="","",VLOOKUP(AF56,Group,7,FALSE)) ->  | AN56: X
C58: HOME - Glazed Porcelain Floor & Wall (High Definition Porcelain w/ Microban) | R58: Item # Lookup: | S58: PNHO | AN58: X
D60: Colors: | E60: Greige Range Grey Range White Range | AN60: X
B62: Field Tile | E62: 12" x 24" | G62: Field - Rectified | P62: 15.61 SF/CTN | R62: a | S62: =IF(Suggested="Yes",AA62,AG62) -> 5.8 | T62: SF | U62: =+Instructions!$B$21 -> G | W62: =+Instructions!$C$21 -> 0 | X62: =ROUNDUP($AA62*(1-W62),2) -> 5.8 | AA62: 5.8 | AB62: =+W62 -> 0 | AC62: =+X62 -> 5.8 | AD62: =(AG62-AC62)/AG62 -> 0 | AF62: 1 | AG62: =SUM(AI62:AK62)+AE62 -> 5.8 | AI62: =ROUND(AC62/(1-VLOOKUP(AF62,Group,2,FALSE)),2) -> 5.8 | AJ62: =IF(VLOOKUP(AF62,Group,5,FALSE)="YES",VLOOKUP(ROUND(ROUND(AI62,1)-AI62,2),Round,2,FALSE)+VLOOKUP(AF62,Group,6,FALSE),0) -> 0 | AK62: =IF(VLOOKUP(AF62,Group,7,FALSE)="",0,ROUND(AI62-0.04999,1)-AI62+AL62) -> 0 | AL62: =IF(VLOOKUP(AF62,Group,7,FALSE)="","",VLOOKUP(AF62,Group,7,FALSE)) ->  | AN62: X
B63: Field Tile | E63: 24" x 24" | G63: Field - Rectified | P63: 15.61 SF/CTN | S63: 6.55 | T63: SF | U63: =+Instructions!$B$21 -> G | W63: =+Instructions!$C$21 -> 0 | X63: 6.55 | AA63: 6.55 | AB63: 0 | AC63: 6.55 | AD63: 0 | AF63: 1 | AG63: 6.55 | AI63: 6.55 | AJ63: 0 | AK63: 0 | AN63: X
B64: Field Tile | E64: 24" x 48" | G64: Field - Rectified | P64: 15.61 SF/CTN | S64: 7.25 | T64: SF | U64: =+Instructions!$B$21 -> G | W64: =+Instructions!$C$21 -> 0 | X64: 7.25 | AA64: 7.25 | AB64: 0 | AC64: 7.25 | AD64: 0 | AF64: 1 | AG64: 7.25 | AI64: 7.25 | AJ64: 0 | AK64: 0 | AN64: X
B66: Decos | E66: 12" x 24" | G66: Field - Rectified - Deco Accessory | P66: 15.61 SF/CTN | R66: b | S66: =IF(Suggested="Yes",AA66,AG66) -> 6.7 | T66: SF | U66: =+Instructions!$B$21 -> G | W66: =+Instructions!$C$21 -> 0 | X66: =ROUNDUP($AA66*(1-W66),2) -> 6.7 | AA66: 6.7 | AB66: =+W66 -> 0 | AC66: =+X66 -> 6.7 | AD66: =(AG66-AC66)/AG66 -> 0 | AF66: 3 | AG66: =SUM(AI66:AK66)+AE66 -> 6.7 | AI66: =ROUND(AC66/(1-VLOOKUP(AF66,Group,2,FALSE)),2) -> 6.7 | AJ66: =IF(VLOOKUP(AF66,Group,5,FALSE)="YES",VLOOKUP(ROUND(ROUND(AI66,1)-AI66,2),Round,2,FALSE)+VLOOKUP(AF66,Group,6,FALSE),0) -> 0 | AK66: =IF(VLOOKUP(AF66,Group,7,FALSE)="",0,ROUND(AI66-0.04999,1)-AI66+AL66) -> 0 | AL66: =IF(VLOOKUP(AF66,Group,7,FALSE)="","",VLOOKUP(AF66,Group,7,FALSE)) ->  | AN66: X
B67: Decos | E67: 24" x 24" | G67: Field - Rectified - Deco Accessory | P67: 15.61 SF/CTN | R67: b | S67: 7.55 | T67: SF | U67: =+Instructions!$B$21 -> G | W67: =+Instructions!$C$21 -> 0 | X67: 7.55 | AA67: 7.55 | AB67: 0 | AC67: 7.55 | AD67: 0 | AF67: 3 | AG67: 7.55 | AI67: 7.55 | AJ67: 0 | AK67: 0 | AN67: X
B69: Decos | E69: 12" x 12" | G69: Mosaic | I69: 2.5" x 2.5" | M69: .97 sf/sheet | P69: 3.88 SF/CTN | S69: 22.1 | T69: SF | U69: =+Instructions!$B$21 -> G | W69: =+Instructions!$C$21 -> 0 | X69: =ROUNDUP($AA69*(1-W69),2) -> 22.1 | AA69: 22.1 | AB69: =+W69 -> 0 | AC69: =+X69 -> 22.1 | AD69: =(AG69-AC69)/AG69 -> 0 | AF69: 3 | AG69: =SUM(AI69:AK69)+AE69 -> 22.1 | AI69: 22.1 | AJ69: 0 | AK69: 0 | AN69: X
B70: Decos | E70: 12" x 28" | G70: Mosaic | I70: Muretto A+B Mix | M70: 1.94 sf/sheet | P70: 7.76 SF/CTN | S70: 28.3 | T70: SF | U70: =+Instructions!$B$21 -> G | W70: =+Instructions!$C$21 -> 0 | X70: 28.3 | AA70: 28.3 | AB70: 0 | AC70: 28.3 | AD70: 0 | AF70: 3 | AG70: 28.3 | AI70: 28.3 | AJ70: 0 | AK70: 0 | AN70: X
B72: Trim | E72: 3-3/4" x 24" | G72: Bullnose | P72: 16 EA/CTN | S72: =IF(Suggested="Yes",AA72,AG72) -> 13.45 | T72: EA | U72: =+Instructions!$B$21 -> G | W72: =+Instructions!$C$21 -> 0 | X72: =ROUNDUP($AA72*(1-W72),2) -> 13.45 | AA72: 13.45 | AB72: =+W72 -> 0 | AC72: =+X72 -> 13.45 | AD72: =(AG72-AC72)/AG72 -> 0 | AF72: 2 | AG72: =SUM(AI72:AK72)+AE72 -> 13.45 | AI72: =ROUND(AC72/(1-VLOOKUP(AF72,Group,2,FALSE)),2) -> 13.45 | AJ72: =IF(VLOOKUP(AF72,Group,5,FALSE)="YES",VLOOKUP(ROUND(ROUND(AI72,1)-AI72,2),Round,2,FALSE)+VLOOKUP(AF72,Group,6,FALSE),0) -> 0 | AK72: =IF(VLOOKUP(AF72,Group,7,FALSE)="",0,ROUND(AI72-0.04999,1)-AI72+AL72) -> 0 | AL72: =IF(VLOOKUP(AF72,Group,7,FALSE)="","",VLOOKUP(AF72,Group,7,FALSE)) ->  | AN72: X
B74: Field Tile | D74: Outdoor: | E74: 24" x 24" x 2cm | G74: Field - Paver | P74: 8.03 SF/CTN | S74: 11.2 | T74: SF | U74: =+Instructions!$B$21 -> G | W74: =+Instructions!$C$21 -> 0 | X74: =ROUNDUP($AA74*(1-W74),2) -> 11.2 | AA74: 11.2 | AB74: =+W74 -> 0 | AC74: =+X74 -> 11.2 | AD74: =(AG74-AC74)/AG74 -> 0 | AF74: 1 | AG74: =SUM(AI74:AK74)+AE74 -> 11.2 | AI74: =ROUND(AC74/(1-VLOOKUP(AF74,Group,2,FALSE)),2) -> 11.2 | AJ74: =IF(VLOOKUP(AF74,Group,5,FALSE)="YES",VLOOKUP(ROUND(ROUND(AI74,1)-AI74,2),Round,2,FALSE)+VLOOKUP(AF74,Group,6,FALSE),0) -> 0 | AK74: =IF(VLOOKUP(AF74,Group,7,FALSE)="",0,ROUND(AI74-0.04999,1)-AI74+AL74) -> 0 | AL74: =IF(VLOOKUP(AF74,Group,7,FALSE)="","",VLOOKUP(AF74,Group,7,FALSE)) ->  | AN74: X
D76: Notes: | E76: a) Packaging is changing from 15.61 SF/CTN to 13.67 SF/CTN as inventory with old packaging is depleted. | AN76: X
E77: b) There are 6 different decorative designs and they are randomly packaged in each carton. | AN77: X
C79: LIFE - Glazed Porcelain Floor & Wall (High Definition Porcelain) | R79: Item # Lookup: | S79: PNLI | AN79: X
D81: Colors: | E81: Bourbon Hay Polar Smoke Smooth | AN81: X
B83: Field Tile | E83: 8" x 36" | G83: Field | P83: 13.94 SF/CTN | S83: =IF(Suggested="Yes",AA83,AG83) -> 6.15 | T83: SF | U83: =+Instructions!$B$21 -> G | W83: =+Instructions!$C$21 -> 0 | X83: =ROUNDUP($AA83*(1-W83),2) -> 6.15 | AA83: 6.15 | AB83: =+W83 -> 0 | AC83: =+X83 -> 6.15 | AD83: =(AG83-AC83)/AG83 -> 0 | AF83: 1 | AG83: =SUM(AI83:AK83)+AE83 -> 6.15 | AI83: =ROUND(AC83/(1-VLOOKUP(AF83,Group,2,FALSE)),2) -> 6.15 | AJ83: =IF(VLOOKUP(AF83,Group,5,FALSE)="YES",VLOOKUP(ROUND(ROUND(AI83,1)-AI83,2),Round,2,FALSE)+VLOOKUP(AF83,Group,6,FALSE),0) -> 0 | AK83: =IF(VLOOKUP(AF83,Group,7,FALSE)="",0,ROUND(AI83-0.04999,1)-AI83+AL83) -> 0 | AL83: =IF(VLOOKUP(AF83,Group,7,FALSE)="","",VLOOKUP(AF83,Group,7,FALSE)) ->  | AN83: X
B85: Decos | E85: 10" x 24" | G85: Herringbone Modules A-B | M85: .92 sf/sheet | P85: 5.52 SF/CTN | S85: =IF(Suggested="Yes",AA85,AG85) -> 26.35 | T85: SF | U85: =+Instructions!$B$21 -> G | W85: =+Instructions!$C$21 -> 0 | X85: =ROUNDUP($AA85*(1-W85),2) -> 26.35 | AA85: 26.35 | AB85: =+W85 -> 0 | AC85: =+X85 -> 26.35 | AD85: =(AG85-AC85)/AG85 -> 0 | AF85: 3 | AG85: =SUM(AI85:AK85)+AE85 -> 26.35 | AI85: =ROUND(AC85/(1-VLOOKUP(AF85,Group,2,FALSE)),2) -> 26.35 | AJ85: =IF(VLOOKUP(AF85,Group,5,FALSE)="YES",VLOOKUP(ROUND(ROUND(AI85,1)-AI85,2),Round,2,FALSE)+VLOOKUP(AF85,Group,6,FALSE),0) -> 0 | AK85: =IF(VLOOKUP(AF85,Group,7,FALSE)="",0,ROUND(AI85-0.04999,1)-AI85+AL85) -> 0 | AL85: =IF(VLOOKUP(AF85,Group,7,FALSE)="","",VLOOKUP(AF85,Group,7,FALSE)) ->  | AN85: X
C87: METROPOLITAN - Glazed Porcelain Floor & Wall (High Definition Porcelain w/ Microban) | R87: Item # Lookup: | S87: PNME | AN87: X
D89: Colors: | E89: Fair Infused Solid Stained | AN89: X
B91: Field Tile | E91: 12" x 24" | G91: Field | P91: 15.82 SF/CTN | S91: =IF(Suggested="Yes",AA91,AG91) -> 5.45 | T91: SF | U91: =+Instructions!$B$21 -> G | W91: =+Instructions!$C$21 -> 0 | X91: =ROUNDUP($AA91*(1-W91),2) -> 5.45 | AA91: 5.45 | AB91: =+W91 -> 0 | AC91: =+X91 -> 5.45 | AD91: =(AG91-AC91)/AG91 -> 0 | AF91: 1 | AG91: =SUM(AI91:AK91)+AE91 -> 5.45 | AI91: =ROUND(AC91/(1-VLOOKUP(AF91,Group,2,FALSE)),2) -> 5.45 | AJ91: =IF(VLOOKUP(AF91,Group,5,FALSE)="YES",VLOOKUP(ROUND(ROUND(AI91,1)-AI91,2),Round,2,FALSE)+VLOOKUP(AF91,Group,6,FALSE),0) -> 0 | AK91: =IF(VLOOKUP(AF91,Group,7,FALSE)="",0,ROUND(AI91-0.04999,1)-AI91+AL91) -> 0 | AL91: =IF(VLOOKUP(AF91,Group,7,FALSE)="","",VLOOKUP(AF91,Group,7,FALSE)) ->  | AN91: X
B92: Field Tile | E92: 24" x 24" | G92: Field | P92: 15.82 SF/CTN | S92: 5.95 | T92: SF | U92: =+Instructions!$B$21 -> G | W92: =+Instructions!$C$21 -> 0 | X92: 5.95 | AA92: 5.95 | AB92: 0 | AC92: 5.95 | AD92: 0 | AF92: 1 | AG92: 5.95 | AI92: 5.95 | AJ92: 0 | AK92: 0 | AN92: X
B93: Field Tile | E93: 24" x 24" | G93: Field - Rectified | P93: 15.61 SF/CTN | S93: 6.5 | T93: SF | U93: =+Instructions!$B$21 -> G | W93: =+Instructions!$C$21 -> 0 | X93: 6.5 | AA93: 6.5 | AB93: 0 | AC93: 6.5 | AD93: 0 | AF93: 1 | AG93: 6.5 | AI93: 6.5 | AJ93: 0 | AK93: 0 | AN93: X
B95: Decos | E95: 12" x 12" | G95: Mosaic | I95: 3" x 3" | M95: .96 sf/sheet | P95: 3.84 SF/CTN | S95: =IF(Suggested="Yes",AA95,AG95) -> 24.8 | T95: SF | U95: =+Instructions!$B$21 -> G | W95: =+Instructions!$C$21 -> 0 | X95: =ROUNDUP($AA95*(1-W95),2) -> 24.8 | AA95: 24.8 | AB95: =+W95 -> 0 | AC95: =+X95 -> 24.8 | AD95: =(AG95-AC95)/AG95 -> 0 | AF95: 3 | AG95: =SUM(AI95:AK95)+AE95 -> 24.8 | AI95: =ROUND(AC95/(1-VLOOKUP(AF95,Group,2,FALSE)),2) -> 24.8 | AJ95: =IF(VLOOKUP(AF95,Group,5,FALSE)="YES",VLOOKUP(ROUND(ROUND(AI95,1)-AI95,2),Round,2,FALSE)+VLOOKUP(AF95,Group,6,FALSE),0) -> 0 | AK95: =IF(VLOOKUP(AF95,Group,7,FALSE)="",0,ROUND(AI95-0.04999,1)-AI95+AL95) -> 0 | AL95: =IF(VLOOKUP(AF95,Group,7,FALSE)="","",VLOOKUP(AF95,Group,7,FALSE)) ->  | AN95: X
B97: Trim | E97: 3-1/8" x 12" | G97: Bullnose | P97: 20 EA/CTN | S97: =IF(Suggested="Yes",AA97,AG97) -> 7.15 | T97: EA | U97: =+Instructions!$B$21 -> G | W97: =+Instructions!$C$21 -> 0 | X97: =ROUNDUP($AA97*(1-W97),2) -> 7.15 | AA97: 7.15 | AB97: =+W97 -> 0 | AC97: =+X97 -> 7.15 | AD97: =(AG97-AC97)/AG97 -> 0 | AF97: 2 | AG97: =SUM(AI97:AK97)+AE97 -> 7.15 | AI97: =ROUND(AC97/(1-VLOOKUP(AF97,Group,2,FALSE)),2) -> 7.15 | AJ97: =IF(VLOOKUP(AF97,Group,5,FALSE)="YES",VLOOKUP(ROUND(ROUND(AI97,1)-AI97,2),Round,2,FALSE)+VLOOKUP(AF97,Group,6,FALSE),0) -> 0 | AK97: =IF(VLOOKUP(AF97,Group,7,FALSE)="",0,ROUND(AI97-0.04999,1)-AI97+AL97) -> 0 | AL97: =IF(VLOOKUP(AF97,Group,7,FALSE)="","",VLOOKUP(AF97,Group,7,FALSE)) ->  | AN97: X
C99: Mixed Colors: Dark Stripes (Suitable for Solid & Infused colors) Light Stripes (Suitable for Fair & Stained colors) | AN99: X
B101: Field Tile | E101: 12" x 24" | G101: Field - Stripes | P101: 15.82 SF/CTN | S101: =IF(Suggested="Yes",AA101,AG101) -> 7.15 | T101: SF | U101: =+Instructions!$B$21 -> G | W101: =+Instructions!$C$21 -> 0 | X101: =ROUNDUP($AA101*(1-W101),2) -> 7.15 | AA101: 7.15 | AB101: =+W101 -> 0 | AC101: =+X101 -> 7.15 | AD101: =(AG101-AC101)/AG101 -> 0 | AF101: 1 | AG101: =SUM(AI101:AK101)+AE101 -> 7.15 | AI101: =ROUND(AC101/(1-VLOOKUP(AF101,Group,2,FALSE)),2) -> 7.15 | AJ101: =IF(VLOOKUP(AF101,Group,5,FALSE)="YES",VLOOKUP(ROUND(ROUND(AI101,1)-AI101,2),Round,2,FALSE)+VLOOKUP(AF101,Group,6,FALSE),0) -> 0 | AK101: =IF(VLOOKUP(AF101,Group,7,FALSE)="",0,ROUND(AI101-0.04999,1)-AI101+AL101) -> 0 | AL101: =IF(VLOOKUP(AF101,Group,7,FALSE)="","",VLOOKUP(AF101,Group,7,FALSE)) ->  | AN101: X
C103: PLAYLIST - Glazed Porcelain | R103: Item # Lookup: | S103: PNPL | AN103: X
D105: Colors: | E105: Acoustic Amber | G105: Gothic Grey | J105: New-Age Terracotta | AN105: X
E106: Ambient White | G106: Grunge Greige | J106: Rhythm and Blues | AN106: X
E107: Classical Beige | G107: Indie Rust | J107: Ska Blue | AN107: X
E108: Folk Green | G108: Lounge Light Green | J108: Synth Black | AN108: X
B110: Field Tile | D110: Soft: | E110: 8" x 8" | G110: Field | P110: 6.89 SF/CTN | S110: =IF(Suggested="Yes",AA110,AG110) -> 9.55 | T110: SF | U110: =+Instructions!$B$21 -> G | W110: =+Instructions!$C$21 -> 0 | X110: =ROUNDUP($AA110*(1-W110),2) -> 9.55 | Z110: new | AA110: 9.55 | AB110: =+W110 -> 0 | AC110: =+X110 -> 9.55 | AD110: =(AG110-AC110)/AG110 -> 0 | AF110: 1 | AG110: =SUM(AI110:AK110)+AE110 -> 9.55 | AI110: =ROUND(AC110/(1-VLOOKUP(AF110,Group,2,FALSE)),2) -> 9.55 | AJ110: =IF(VLOOKUP(AF110,Group,5,FALSE)="YES",VLOOKUP(ROUND(ROUND(AI110,1)-AI110,2),Round,2,FALSE)+VLOOKUP(AF110,Group,6,FALSE),0) -> 0 | AK110: =IF(VLOOKUP(AF110,Group,7,FALSE)="",0,ROUND(AI110-0.04999,1)-AI110+AL110) -> 0 | AL110: =IF(VLOOKUP(AF110,Group,7,FALSE)="","",VLOOKUP(AF110,Group,7,FALSE)) ->  | AN110: X
B111: Field Tile | E111: 3" x 12" | G111: Field | P111: 5.06 SF/CTN | S111: =IF(Suggested="Yes",AA111,AG111) -> 9.3 | T111: SF | U111: =+Instructions!$B$21 -> G | W111: =+Instructions!$C$21 -> 0 | X111: =ROUNDUP($AA111*(1-W111),2) -> 9.3 | Z111: new | AA111: 9.3 | AB111: =+W111 -> 0 | AC111: =+X111 -> 9.3 | AD111: =(AG111-AC111)/AG111 -> 0 | AF111: 1 | AG111: =SUM(AI111:AK111)+AE111 -> 9.3 | AI111: =ROUND(AC111/(1-VLOOKUP(AF111,Group,2,FALSE)),2) -> 9.3 | AJ111: =IF(VLOOKUP(AF111,Group,5,FALSE)="YES",VLOOKUP(ROUND(ROUND(AI111,1)-AI111,2),Round,2,FALSE)+VLOOKUP(AF111,Group,6,FALSE),0) -> 0 | AK111: =IF(VLOOKUP(AF111,Group,7,FALSE)="",0,ROUND(AI111-0.04999,1)-AI111+AL111) -> 0 | AL111: =IF(VLOOKUP(AF111,Group,7,FALSE)="","",VLOOKUP(AF111,Group,7,FALSE)) ->  | AN111: X
D113: Colors: | E113: Color Mix Neutral Mix | AN113: X
B115: Decos | D115: Soft: | E115: 8" x 8" | G115: Field - Accessory | P115: 6.89 SF/CTN | R115: a | S115: =IF(Suggested="Yes",AA115,AG115) -> 9.85 | T115: SF | U115: =+Instructions!$B$21 -> G | W115: =+Instructions!$C$21 -> 0 | X115: =ROUNDUP($AA115*(1-W115),2) -> 9.85 | Z115: new | AA115: 9.85 | AB115: =+W115 -> 0 | AC115: =+X115 -> 9.85 | AD115: =(AG115-AC115)/AG115 -> 0 | AF115: 3 | AG115: =SUM(AI115:AK115)+AE115 -> 9.85 | AI115: =ROUND(AC115/(1-VLOOKUP(AF115,Group,2,FALSE)),2) -> 9.85 | AJ115: =IF(VLOOKUP(AF115,Group,5,FALSE)="YES",VLOOKUP(ROUND(ROUND(AI115,1)-AI115,2),Round,2,FALSE)+VLOOKUP(AF115,Group,6,FALSE),0) -> 0 | AK115: =IF(VLOOKUP(AF115,Group,7,FALSE)="",0,ROUND(AI115-0.04999,1)-AI115+AL115) -> 0 | AL115: =IF(VLOOKUP(AF115,Group,7,FALSE)="","",VLOOKUP(AF115,Group,7,FALSE)) ->  | AN115: X
D117: Note: | E117: a) Each carton contains a random mix of decorative patterns. | AN117: X
C119: PRESTIGE - Glazed Porcelain Floor & Wall (w/ Microban) | R119: Item # Lookup: | S119: PNPR | AN119: X
D121: Colors: | E121: Calacatta Gold Imperiale Grey Onice Cream Travertino White | AN121: X
B123: Field Tile | D123: Soft: | E123: 12" x 24" | G123: Field - Rectified | P123: 15.61 SF/CTN | Q123: Stock | S123: =IF(Suggested="Yes",AA123,AG123) -> 5.9 | T123: SF | U123: =+Instructions!$B$21 -> G | W123: =+Instructions!$C$21 -> 0 | X123: =ROUNDUP($AA123*(1-W123),2) -> 5.9 | AA123: 5.9 | AB123: =+W123 -> 0 | AC123: =+X123 -> 5.9 | AD123: =(AG123-AC123)/AG123 -> 0 | AF123: 1 | AG123: =SUM(AI123:AK123)+AE123 -> 5.9 | AI123: =ROUND(AC123/(1-VLOOKUP(AF123,Group,2,FALSE)),2) -> 5.9 | AJ123: =IF(VLOOKUP(AF123,Group,5,FALSE)="YES",VLOOKUP(ROUND(ROUND(AI123,1)-AI123,2),Round,2,FALSE)+VLOOKUP(AF123,Group,6,FALSE),0) -> 0 | AK123: =IF(VLOOKUP(AF123,Group,7,FALSE)="",0,ROUND(AI123-0.04999,1)-AI123+AL123) -> 0 | AL123: =IF(VLOOKUP(AF123,Group,7,FALSE)="","",VLOOKUP(AF123,Group,7,FALSE)) ->  | AN123: X
B124: Field Tile | E124: 24" x 48" | G124: Field - Rectified | P124: 15.50 SF/CTN | S124: 6.7 | T124: SF | U124: =+Instructions!$B$21 -> G | W124: =+Instructions!$C$21 -> 0 | X124: 6.7 | AA124: 6.7 | AB124: 0 | AC124: 6.7 | AD124: 0 | AF124: 1 | AG124: 6.7 | AI124: 6.7 | AJ124: 0 | AK124: 0 | AN124: X
B126: Decos | E126: 12" x 12" | G126: Mosaic | I126: 2" x 2" | P126: .97 SF/SHEET | Q126: Stock | S126: =IF(Suggested="Yes",AA126,AG126) -> 21.35 | T126: SF | U126: =+Instructions!$B$21 -> G | W126: =+Instructions!$C$21 -> 0 | X126: =ROUNDUP($AA126*(1-W126),2) -> 21.35 | AA126: 21.35 | AB126: =+W126 -> 0 | AC126: =+X126 -> 21.35 | AD126: =(AG126-AC126)/AG126 -> 0 | AF126: 3 | AG126: =SUM(AI126:AK126)+AE126 -> 21.35 | AI126: =ROUND(AC126/(1-VLOOKUP(AF126,Group,2,FALSE)),2) -> 21.35 | AJ126: =IF(VLOOKUP(AF126,Group,5,FALSE)="YES",VLOOKUP(ROUND(ROUND(AI126,1)-AI126,2),Round,2,FALSE)+VLOOKUP(AF126,Group,6,FALSE),0) -> 0 | AK126: =IF(VLOOKUP(AF126,Group,7,FALSE)="",0,ROUND(AI126-0.04999,1)-AI126+AL126) -> 0 | AL126: =IF(VLOOKUP(AF126,Group,7,FALSE)="","",VLOOKUP(AF126,Group,7,FALSE)) ->  | AN126: X
B127: Decos | E127: 4" x 24" | G127: Field | I127: Chevron | M127: .55 sf/piece | P127: 4.40 SF/CTN | S127: 18.3 | T127: SF | U127: =+Instructions!$B$21 -> G | W127: =+Instructions!$C$21 -> 0 | X127: 18.3 | AA127: 18.3 | AB127: 0 | AC127: 18.3 | AD127: 0 | AF127: 3 | AG127: 18.3 | AI127: 18.3 | AJ127: 0 | AK127: 0 | AN127: X
B129: Trim | E129: 3-3/4" x 24" | G129: Bullnose | Q129: Stock | S129: =IF(Suggested="Yes",AA129,AG129) -> 12.95 | T129: EA | U129: =+Instructions!$B$21 -> G | W129: =+Instructions!$C$21 -> 0 | X129: =ROUNDUP($AA129*(1-W129),2) -> 12.95 | AA129: 12.95 | AB129: =+W129 -> 0 | AC129: =+X129 -> 12.95 | AD129: =(AG129-AC129)/AG129 -> 0 | AF129: 2 | AG129: =SUM(AI129:AK129)+AE129 -> 12.95 | AI129: =ROUND(AC129/(1-VLOOKUP(AF129,Group,2,FALSE)),2) -> 12.95 | AJ129: =IF(VLOOKUP(AF129,Group,5,FALSE)="YES",VLOOKUP(ROUND(ROUND(AI129,1)-AI129,2),Round,2,FALSE)+VLOOKUP(AF129,Group,6,FALSE),0) -> 0 | AK129: =IF(VLOOKUP(AF129,Group,7,FALSE)="",0,ROUND(AI129-0.04999,1)-AI129+AL129) -> 0 | AL129: =IF(VLOOKUP(AF129,Group,7,FALSE)="","",VLOOKUP(AF129,Group,7,FALSE)) ->  | AN129: X
B131: Italy | D131: Lux: | E131: 12" x 24" | G131: Field - Rectified | P131: 17.44 SF/CTN | Q131: Stock | S131: =IF(Suggested="Yes",AA131,AG131) -> 10.9 | T131: SF | U131: G | W131: =+Instructions!$C$21 -> 0 | X131: =ROUNDUP($AA131*(1-W131),2) -> 10.9 | AA131: 10.9 | AB131: =+W131 -> 0 | AC131: =+X131 -> 10.9 | AD131: =(AG131-AC131)/AG131 -> 0 | AF131: 4 | AG131: =SUM(AI131:AK131)+AE131 -> 10.9 | AI131: =ROUND(AC131/(1-VLOOKUP(AF131,Group,2,FALSE)),2) -> 10.9 | AJ131: =IF(VLOOKUP(AF131,Group,5,FALSE)="YES",VLOOKUP(ROUND(ROUND(AI131,1)-AI131,2),Round,2,FALSE)+VLOOKUP(AF131,Group,6,FALSE),0) -> 0 | AK131: =IF(VLOOKUP(AF131,Group,7,FALSE)="",0,ROUND(AI131-0.04999,1)-AI131+AL131) -> 0 | AL131: =IF(VLOOKUP(AF131,Group,7,FALSE)="","",VLOOKUP(AF131,Group,7,FALSE)) ->  | AN131: X
B132: Field Tile | E132: 24" x 48" | G132: Field - Rectified | P132: 15.50 SF/CTN | S132: 14.25 | T132: SF | U132: =+Instructions!$B$21 -> G | W132: =+Instructions!$C$21 -> 0 | X132: 14.25 | AA132: 14.25 | AB132: 0 | AC132: 14.25 | AD132: 0 | AF132: 1 | AG132: 14.25 | AI132: 14.25 | AJ132: 0 | AK132: 0 | AN132: X
B134: Decos | E134: 12" x 12" | G134: Mosaic | I134: 2" x 2" | M134: .97 sf/sheet | P134: 3.88 SF/CTN | S134: =IF(Suggested="Yes",AA134,AG134) -> 24.45 | T134: SF | U134: =+Instructions!$B$21 -> G | W134: =+Instructions!$C$21 -> 0 | X134: =ROUNDUP($AA134*(1-W134),2) -> 24.45 | AA134: 24.45 | AB134: =+W134 -> 0 | AC134: =+X134 -> 24.45 | AD134: =(AG134-AC134)/AG134 -> 0 | AF134: 3 | AG134: =SUM(AI134:AK134)+AE134 -> 24.45 | AI134: =ROUND(AC134/(1-VLOOKUP(AF134,Group,2,FALSE)),2) -> 24.45 | AJ134: =IF(VLOOKUP(AF134,Group,5,FALSE)="YES",VLOOKUP(ROUND(ROUND(AI134,1)-AI134,2),Round,2,FALSE)+VLOOKUP(AF134,Group,6,FALSE),0) -> 0 | AK134: =IF(VLOOKUP(AF134,Group,7,FALSE)="",0,ROUND(AI134-0.04999,1)-AI134+AL134) -> 0 | AL134: =IF(VLOOKUP(AF134,Group,7,FALSE)="","",VLOOKUP(AF134,Group,7,FALSE)) ->  | AN134: X
B136: Trim | E136: 3-3/4" x 24" | G136: Bullnose | Q136: Stock | S136: =IF(Suggested="Yes",AA136,AG136) -> 14.8 | T136: EA | U136: =+Instructions!$B$21 -> G | W136: =+Instructions!$C$21 -> 0 | X136: =ROUNDUP($AA136*(1-W136),2) -> 14.8 | AA136: 14.8 | AB136: =+W136 -> 0 | AC136: =+X136 -> 14.8 | AD136: =(AG136-AC136)/AG136 -> 0 | AF136: 2 | AG136: =SUM(AI136:AK136)+AE136 -> 14.8 | AI136: =ROUND(AC136/(1-VLOOKUP(AF136,Group,2,FALSE)),2) -> 14.8 | AJ136: =IF(VLOOKUP(AF136,Group,5,FALSE)="YES",VLOOKUP(ROUND(ROUND(AI136,1)-AI136,2),Round,2,FALSE)+VLOOKUP(AF136,Group,6,FALSE),0) -> 0 | AK136: =IF(VLOOKUP(AF136,Group,7,FALSE)="",0,ROUND(AI136-0.04999,1)-AI136+AL136) -> 0 | AL136: =IF(VLOOKUP(AF136,Group,7,FALSE)="","",VLOOKUP(AF136,Group,7,FALSE)) ->  | AN136: X
D138: Note: | E138: a) Each carton contains 4 right arrows and 4 left arrows. | AN138: X
C140: SUITE - Glazed Porcelain Floor & Wall | R140: Item # Lookup: | S140: PNSU | AN140: X
D142: Colors: | E142: Arabesque Ice White Statue | AN142: X
B144: Field Tile | E144: 4" x 12" | G144: Field - Rectified | P144: 6.67 SF/CTN | R144: a | S144: =IF(Suggested="Yes",AA144,AG144) -> 8.45 | T144: SF | U144: =+Instructions!$B$21 -> G | W144: =+Instructions!$C$21 -> 0 | X144: =ROUNDUP($AA144*(1-W144),2) -> 8.45 | AA144: 8.45 | AB144: =+W144 -> 0 | AC144: =+X144 -> 8.45 | AD144: =(AG144-AC144)/AG144 -> 0 | AF144: 1 | AG144: =SUM(AI144:AK144)+AE144 -> 8.45 | AI144: =ROUND(AC144/(1-VLOOKUP(AF144,Group,2,FALSE)),2) -> 8.45 | AJ144: =IF(VLOOKUP(AF144,Group,5,FALSE)="YES",VLOOKUP(ROUND(ROUND(AI144,1)-AI144,2),Round,2,FALSE)+VLOOKUP(AF144,Group,6,FALSE),0) -> 0 | AK144: =IF(VLOOKUP(AF144,Group,7,FALSE)="",0,ROUND(AI144-0.04999,1)-AI144+AL144) -> 0 | AL144: =IF(VLOOKUP(AF144,Group,7,FALSE)="","",VLOOKUP(AF144,Group,7,FALSE)) ->  | AN144: X
B145: Field Tile | E145: 12" x 24" | G145: Field | P145: 15.82 SF/CTN | S145: 5.95 | T145: SF | U145: =+Instructions!$B$21 -> G | W145: =+Instructions!$C$21 -> 0 | X145: 5.95 | AA145: 5.95 | AB145: 0 | AC145: 5.95 | AD145: 0 | AF145: 1 | AG145: 5.95 | AI145: 5.95 | AJ145: 0 | AK145: 0 | AN145: X
B146: Field Tile | E146: 24" x 24" | G146: Field | P146: 15.82 SF/CTN | S146: 6.05 | T146: SF | U146: =+Instructions!$B$21 -> G | W146: =+Instructions!$C$21 -> 0 | X146: 6.05 | AA146: 6.05 | AB146: 0 | AC146: 6.05 | AD146: 0 | AF146: 1 | AG146: 6.05 | AI146: 6.05 | AJ146: 0 | AK146: 0 | AN146: X
B148: Decos | E148: 12" x 12" | G148: Mosaic | I148: 3" x 3" | M148: .97 sf/sheet | P148: 3.88 SF/CTN | S148: =IF(Suggested="Yes",AA148,AG148) -> 23.15 | T148: SF | U148: =+Instructions!$B$21 -> G | W148: =+Instructions!$C$21 -> 0 | X148: =ROUNDUP($AA148*(1-W148),2) -> 23.15 | AA148: 23.15 | AB148: =+W148 -> 0 | AC148: =+X148 -> 23.15 | AD148: =(AG148-AC148)/AG148 -> 0 | AF148: 3 | AG148: =SUM(AI148:AK148)+AE148 -> 23.15 | AI148: =ROUND(AC148/(1-VLOOKUP(AF148,Group,2,FALSE)),2) -> 23.15 | AJ148: =IF(VLOOKUP(AF148,Group,5,FALSE)="YES",VLOOKUP(ROUND(ROUND(AI148,1)-AI148,2),Round,2,FALSE)+VLOOKUP(AF148,Group,6,FALSE),0) -> 0 | AK148: =IF(VLOOKUP(AF148,Group,7,FALSE)="",0,ROUND(AI148-0.04999,1)-AI148+AL148) -> 0 | AL148: =IF(VLOOKUP(AF148,Group,7,FALSE)="","",VLOOKUP(AF148,Group,7,FALSE)) ->  | AN148: X
B150: Trim | E150: 3-1/8" x 12" | G150: Bullnose | P150: 20 EA/CTN | S150: =IF(Suggested="Yes",AA150,AG150) -> 6.55 | T150: EA | U150: =+Instructions!$B$21 -> G | W150: =+Instructions!$C$21 -> 0 | X150: =ROUNDUP($AA150*(1-W150),2) -> 6.55 | AA150: 6.55 | AB150: =+W150 -> 0 | AC150: =+X150 -> 6.55 | AD150: =(AG150-AC150)/AG150 -> 0 | AF150: 2 | AG150: =SUM(AI150:AK150)+AE150 -> 6.55 | AI150: =ROUND(AC150/(1-VLOOKUP(AF150,Group,2,FALSE)),2) -> 6.55 | AJ150: =IF(VLOOKUP(AF150,Group,5,FALSE)="YES",VLOOKUP(ROUND(ROUND(AI150,1)-AI150,2),Round,2,FALSE)+VLOOKUP(AF150,Group,6,FALSE),0) -> 0 | AK150: =IF(VLOOKUP(AF150,Group,7,FALSE)="",0,ROUND(AI150-0.04999,1)-AI150+AL150) -> 0 | AL150: =IF(VLOOKUP(AF150,Group,7,FALSE)="","",VLOOKUP(AF150,Group,7,FALSE)) ->  | AN150: X
D152: Note: | E152: a) This item is changing from a pressed to a rectified edge. Packaging for the rectified version | AN152: X
E153: will be 6.12 SF/CTN as inventory with the pressed format is depleted. | AN153: X
C155: TRUE - Glazed Porcelain Floor & Wall | R155: Item # Lookup: | S155: PNTR | AN155: X
D157: Colors: | E157: Light Beige Mild Grey Soft Black Warm White | AN157: X
B159: Field Tile | E159: 12" x 24" x 9mm | G159: Field | P159: 15.82 SF/CTN | S159: =IF(Suggested="Yes",AA159,AG159) -> 5.45 | T159: SF | U159: =+Instructions!$B$21 -> G | W159: =+Instructions!$C$21 -> 0 | X159: =ROUNDUP($AA159*(1-W159),2) -> 5.45 | AA159: 5.45 | AB159: =+W159 -> 0 | AC159: =+X159 -> 5.45 | AD159: =(AG159-AC159)/AG159 -> 0 | AF159: 1 | AG159: =SUM(AI159:AK159)+AE159 -> 5.45 | AI159: =ROUND(AC159/(1-VLOOKUP(AF159,Group,2,FALSE)),2) -> 5.45 | AJ159: =IF(VLOOKUP(AF159,Group,5,FALSE)="YES",VLOOKUP(ROUND(ROUND(AI159,1)-AI159,2),Round,2,FALSE)+VLOOKUP(AF159,Group,6,FALSE),0) -> 0 | AK159: =IF(VLOOKUP(AF159,Group,7,FALSE)="",0,ROUND(AI159-0.04999,1)-AI159+AL159) -> 0 | AL159: =IF(VLOOKUP(AF159,Group,7,FALSE)="","",VLOOKUP(AF159,Group,7,FALSE)) ->  | AN159: X
B161: Decos | E161: 12" x 12" x 9mm | G161: Mosaic | I161: 2.5" x 2.5" | M161: .97 sf/sheet | P161: 3.88 SF/CTN | S161: =IF(Suggested="Yes",AA161,AG161) -> 22.95 | T161: SF | U161: =+Instructions!$B$21 -> G | W161: =+Instructions!$C$21 -> 0 | X161: =ROUNDUP($AA161*(1-W161),2) -> 22.95 | AA161: 22.95 | AB161: =+W161 -> 0 | AC161: =+X161 -> 22.95 | AD161: =(AG161-AC161)/AG161 -> 0 | AF161: 3 | AG161: =SUM(AI161:AK161)+AE161 -> 22.95 | AI161: =ROUND(AC161/(1-VLOOKUP(AF161,Group,2,FALSE)),2) -> 22.95 | AJ161: =IF(VLOOKUP(AF161,Group,5,FALSE)="YES",VLOOKUP(ROUND(ROUND(AI161,1)-AI161,2),Round,2,FALSE)+VLOOKUP(AF161,Group,6,FALSE),0) -> 0 | AK161: =IF(VLOOKUP(AF161,Group,7,FALSE)="",0,ROUND(AI161-0.04999,1)-AI161+AL161) -> 0 | AL161: =IF(VLOOKUP(AF161,Group,7,FALSE)="","",VLOOKUP(AF161,Group,7,FALSE)) ->  | AN161: X
B163: Trim | E163: 3-1/8" x 12" x 9mm | G163: Bullnose | P163: 20 EA/CTN | S163: =IF(Suggested="Yes",AA163,AG163) -> 6.5 | T163: EA | U163: =+Instructions!$B$21 -> G | W163: =+Instructions!$C$21 -> 0 | X163: =ROUNDUP($AA163*(1-W163),2) -> 6.5 | AA163: 6.5 | AB163: =+W163 -> 0 | AC163: =+X163 -> 6.5 | AD163: =(AG163-AC163)/AG163 -> 0 | AF163: 2 | AG163: =SUM(AI163:AK163)+AE163 -> 6.5 | AI163: =ROUND(AC163/(1-VLOOKUP(AF163,Group,2,FALSE)),2) -> 6.5 | AJ163: =IF(VLOOKUP(AF163,Group,5,FALSE)="YES",VLOOKUP(ROUND(ROUND(AI163,1)-AI163,2),Round,2,FALSE)+VLOOKUP(AF163,Group,6,FALSE),0) -> 0 | AK163: =IF(VLOOKUP(AF163,Group,7,FALSE)="",0,ROUND(AI163-0.04999,1)-AI163+AL163) -> 0 | AL163: =IF(VLOOKUP(AF163,Group,7,FALSE)="","",VLOOKUP(AF163,Group,7,FALSE)) ->  | AN163: X
B165: Field Tile | D165: Pavers: | E165: 24" x 24" x 2cm | G165: Field - Anti-Slip Paver | P165: 8.03 SF/CTN | R165: a | S165: 11.2 | T165: SF | U165: =+Instructions!$B$21 -> G | W165: =+Instructions!$C$21 -> 0 | X165: =ROUNDUP($AA165*(1-W165),2) -> 11.2 | AA165: 11.2 | AB165: =+W165 -> 0 | AC165: =+X165 -> 11.2 | AD165: =(AG165-AC165)/AG165 -> 0 | AF165: 1 | AG165: =SUM(AI165:AK165)+AE165 -> 11.2 | AI165: =ROUND(AC165/(1-VLOOKUP(AF165,Group,2,FALSE)),2) -> 11.2 | AJ165: =IF(VLOOKUP(AF165,Group,5,FALSE)="YES",VLOOKUP(ROUND(ROUND(AI165,1)-AI165,2),Round,2,FALSE)+VLOOKUP(AF165,Group,6,FALSE),0) -> 0 | AK165: =IF(VLOOKUP(AF165,Group,7,FALSE)="",0,ROUND(AI165-0.04999,1)-AI165+AL165) -> 0 | AL165: =IF(VLOOKUP(AF165,Group,7,FALSE)="","",VLOOKUP(AF165,Group,7,FALSE)) ->  | AN165: X
D167: Note: | E167: a) Not available in the color Soft Black | AN167: X
C169: WOOD TREND - Glazed Porcelain Floor | R169: Item # Lookup: | S169: PNWO | AN169: X
D171: Colors: | E171: Birch Elm Mahogany Walnut Multi White Oak | AN171: X
B173: Field Tile | E173: 8" x 36" | G173: Field | P173: 13.94 SF/CTN | S173: =IF(Suggested="Yes",AA173,AG173) -> 6.15 | T173: SF | U173: =+Instructions!$B$21 -> G | W173: =+Instructions!$C$21 -> 0 | X173: =ROUNDUP($AA173*(1-W173),2) -> 6.15 | AA173: 6.15 | AB173: =+W173 -> 0 | AC173: =+X173 -> 6.15 | AD173: =(AG173-AC173)/AG173 -> 0 | AF173: 1 | AG173: =SUM(AI173:AK173)+AE173 -> 6.15 | AI173: =ROUND(AC173/(1-VLOOKUP(AF173,Group,2,FALSE)),2) -> 6.15 | AJ173: =IF(VLOOKUP(AF173,Group,5,FALSE)="YES",VLOOKUP(ROUND(ROUND(AI173,1)-AI173,2),Round,2,FALSE)+VLOOKUP(AF173,Group,6,FALSE),0) -> 0 | AK173: =IF(VLOOKUP(AF173,Group,7,FALSE)="",0,ROUND(AI173-0.04999,1)-AI173+AL173) -> 0 | AL173: =IF(VLOOKUP(AF173,Group,7,FALSE)="","",VLOOKUP(AF173,Group,7,FALSE)) ->  | AN173: X
C175: WOOD YOU - Glazed Porcelain Floor & Wall | R175: Item # Lookup: | S175: PNWY | AN175: X
D177: Colors: | E177: Bruno Corda Dolce Fumo Noce Stucco | AN177: X
B179: Field Tile | E179: 8" x 36" | G179: Field | P179: 13.94 SF/CTN | S179: =IF(Suggested="Yes",AA179,AG179) -> 6.15 | T179: SF | U179: =+Instructions!$B$21 -> G | W179: =+Instructions!$C$21 -> 0 | X179: =ROUNDUP($AA179*(1-W179),2) -> 6.15 | AA179: 6.15 | AB179: =+W179 -> 0 | AC179: =+X179 -> 6.15 | AD179: =(AG179-AC179)/AG179 -> 0 | AF179: 1 | AG179: =SUM(AI179:AK179)+AE179 -> 6.15 | AI179: =ROUND(AC179/(1-VLOOKUP(AF179,Group,2,FALSE)),2) -> 6.15 | AJ179: =IF(VLOOKUP(AF179,Group,5,FALSE)="YES",VLOOKUP(ROUND(ROUND(AI179,1)-AI179,2),Round,2,FALSE)+VLOOKUP(AF179,Group,6,FALSE),0) -> 0 | AK179: =IF(VLOOKUP(AF179,Group,7,FALSE)="",0,ROUND(AI179-0.04999,1)-AI179+AL179) -> 0 | AL179: =IF(VLOOKUP(AF179,Group,7,FALSE)="","",VLOOKUP(AF179,Group,7,FALSE)) ->  | AN179: X
AN181: X
AN182: X
AN183: X
AN184: X
C185: This price list is available electronically on an Excel spreadsheet at www.conestogatile.com/pricelists. | AN185: X
AN186: X
C187: The spreadsheet has many special features to assist you. Apply your discount to generate your net costs for your purchasing department. Apply your standard gross margin percentage or custom prices to generate your own custom price list for your showroom. Print out individual price list for each series that can be attached to the back of your sample boards for easy reference. | AN187: X
A188: X | B188: X | C188: X | D188: X | E188: X | F188: X | G188: X | H188: X | I188: X | J188: X | K188: X | L188: X | M188: X | N188: X | O188: X | P188: X | Q188: X | R188: X | S188: X | T188: X | U188: X | V188: X | W188: X | X188: X | Y188: X | Z188: X | AA188: X | AB188: X | AC188: X | AD188: X | AE188: X | AF188: X | AG188: X | AH188: X | AI188: X | AJ188: X | AK188: X | AL188: X | AM188: X | AN188: X
D190: $.05 Round Matrix
D191: -0.04 | E191: 0.01
D192: -0.03 | E192: 0.02
D193: -0.02 | E193: 0.03
D194: -0.01 | E194: -0.01
D195: 0 | E195: 0
D196: 0.01 | E196: 0.01
D197: 0.02 | E197: 0.02
D198: 0.03 | E198: 0.03
D199: 0.04 | E199: -0.01
D200: 0.05 | E200: 0

Sheet Websites
A1: Easy Access Website links
A3: ConestogaTile's Website | B3: www.conestogatile.com
A5: Manufacturer's Home Page | B5: https://www.panaria.us/
A8: Product | B8: Direct Website Link
A9: Connect | B9: https://www.panaria.us/collection/connect
A10: Craft | B10: https://www.panaria.us/collection/craft
A11: Flow | B11: https://www.panaria.us/collection/flow
A12: Home | B12: https://www.panaria.us/collection/home
A13: Life | B13: https://www.panaria.us/collection/life
A14: Metropolitan | B14: https://www.panaria.us/collection/metropolitan
A15: Playlist
A16: Prestige | B16: https://www.panaria.us/collection/prestige
A17: Suite | B17: https://www.panaria.us/collection/suite
A18: True | B18: https://www.panaria.us/collection/true
A19: Wood Trend | B19: https://www.panaria.us/collection/wood-trend
A20: Wood You | B20: https://www.panaria.us/collection/wood-you

Sheet Changes
A1: Date | C1: Description
A2: Announced | B2: Series
A3: New Products
A4: 2023-01-01 | B4: Connect | C4: Glazed Porcelain Floor & Wall
A5: 2023-01-01 | B5: Craft | C5: Glazed Porcelain Floor & Wall
A6: 2023-01-01 | B6: Flow | C6: Glazed Porcelain Floor & Wall
A7: 2023-01-01 | B7: Home | C7: Glazed Porcelain Floor & Wall
A8: 2023-01-01 | B8: Life | C8: Glazed Porcelain Floor & Wall
A9: 2023-01-01 | B9: Metropolitan | C9: Glazed Porcelain Floor & Wall
A10: 2023-01-01 | B10: Prestige | C10: Glazed Porcelain Floor & Wall
A11: 2023-01-01 | B11: Suite | C11: Glazed Porcelain Floor & Wall
A12: 2023-01-01 | B12: True | C12: Glazed Porcelain Floor & Wall
A13: 2023-01-01 | B13: Wood Trend | C13: Glazed Porcelain Floor
A14: 2023-01-01 | B14: Wood You | C14: Glazed Porcelain Floor & Wall
A15: 2024-07-02 | B15: Playlist | C15: Glazed Porcelain
A19: Discontinued Products
A20: 2023-04-28 | B20: True | C20: 18" x 36" x 10mm Pressed and Rectified Field Tile formats only in all colors.
A24: Changes
A25: 2023-01-03 | B25: Prestige | C25: Packaging for the 12" x 24" Soft finish only Field Tile format has changed to 15.61 SF/CTN.
